fUSD/lending_fUSD_20240416
["ID","MTS","AMOUNT","RATE_DAILY","PERIOD"]
[322741328,1713232809738,401.041611,0.00028,30]
[322741329,1713232813554,409.041611,0.00028,30]
[322741330,1713232818025,419.041611,0.00028,30]
[322741331,1713232821501,421.041611,0.00028,30]
[322741332,1713232827238,431.041611,0.00028,30]
[322741334,1713232830969,433.041611,0.00028,30]
[322741335,1713232836366,439.041611,0.00028,30]
[322741336,1713232842406,443.041611,0.00028,30]
[322741338,1713232850390,449.041611,0.00028,30]
[322741339,1713232856474,457.041611,0.00028,30]
[322741340,1713232861658,461.041611,0.00028,30]
[322741341,1713232866688,463.041611,0.00028,30]
[322741342,1713232872624,467.041611,0.00028,30]
[322741344,1713232877061,479.041611,0.00028,30]
[322741347,1713232882824,487.041611,0.00028,30]
[322741349,1713232888718,491.041611,0.00028,30]
[322741350,1713232892753,499.041611,0.00028,30]
[322741352,1713232900462,503.041611,0.00028,30]
[322741353,1713232902823,509.041611,0.00028,30]
[322741354,1713232907893,521.041611,0.00028,30]
[322741355,1713232912344,523.041611,0.00028,30]
[322741356,1713232918179,541.041611,0.00028,30]
[322741357,1713232922419,547.041611,0.00028,30]
[322741358,1713232926529,557.041611,0.00028,30]
[322741359,1713232932278,563.041611,0.00028,30]
[322741360,1713232940407,569.041611,0.00028,30]
[322741361,1713232945639,571.041611,0.00028,30]
[322741362,1713232950589,577.041611,0.00028,30]
[322741363,1713232957242,587.041611,0.00028,30]
[322741364,1713232962327,593.041611,0.00028,30]
[322741365,1713232968425,599.041611,0.00028,30]
[322741366,1713232976454,601.041611,0.00028,30]
[322741367,1713232980119,607.041611,0.00028,30]
[322741368,1713232985303,613.041611,0.00028,30]
[322741369,1713232991423,617.041611,0.00028,30]
[322741370,1713232998668,619.041611,0.00028,30]
[322741371,1713233012161,631.041611,0.00028,30]
[322741372,1713233035310,173.041611,0.00028,30]
[322741373,1713233040151,179.041611,0.00028,30]
[322741374,1713233047630,181.041611,0.00028,30]
[322741375,1713233068072,208.041611,0.00028,30]
[322741376,1713233068126,377.54449,0.000266,30]
[322741390,1713233208150,152.94,0.0001751,2]
[322741430,1713233431793,-10000.037,0.000189,2]
[322741431,1713233431804,-982.33288776,0.000189,2]
[322741432,1713233431851,-1718.69881709,0.000189,2]
[322741433,1713233431913,-1115.74896353,0.000189,2]
[322741434,1713233431925,-544.85215758,0.000189,2]
[322741435,1713233431940,-319.4,0.000189,2]
[322741436,1713233431977,-379.96068871,0.000189,2]
[322741437,1713233431991,-319.28316693,0.000189,2]
[322741448,1713233437732,-7571.390272,0.000189,2]
[322741449,1713233437741,-1550.0,0.00019,3]
[322741450,1713233437751,-1581.61199899,0.00019316,2]
[322741451,1713233437760,-190.27,0.00019416,2]
[322741452,1713233437769,-455.94,0.00019428,2]
[322741453,1713233437779,-544.06,0.00019509,2]
[322741454,1713233437790,-1401.91,0.00019562,2]
[322741455,1713233437799,-169.34,0.00019668,2]
[322741456,1713233437808,-1200.0,0.0001978,2]
[322741457,1713233437818,-600.0,0.0001978,2]
[322741458,1713233437827,-150.0,0.00020246,2]
[322741459,1713233437836,-5864.66838969,0.00020247,2]
[322741460,1713233437845,-1310.90806692,0.00020247,2]
[322741461,1713233437854,-499.99,0.00020247,2]
[322741462,1713233437864,-414.6662,0.00020247,2]
[322741463,1713233437873,-225.50450405,0.00020282,2]
[322741464,1713233437882,-5864.66838969,0.0002032,2]
[322741465,1713233437891,-1310.90806688,0.0002032,2]
[322741466,1713233437900,-1200.0,0.00020328,2]
[322741467,1713233437909,-600.0,0.00020328,2]
[322741468,1713233437918,-151.43,0.00020337,2]
[322741469,1713233437927,-162.67491898,0.00020341,2]
[322741470,1713233437936,-6620.2614635,0.00020346,2]
[322741471,1713233437945,-245000.0,0.00020347,2]
[322741472,1713233437955,-1000.0,0.00020347,2]
[322741473,1713233437964,-51608.3405,0.00020347,2]
[322741474,1713233437974,-1000.0,0.00020382,2]
[322741475,1713233437983,-204.571546,0.00020383,2]
[322741476,1713233437992,-1000.0,0.00020383,2]
[322741477,1713233438001,-203.091419,0.00020383,2]
[322741478,1713233438009,-500.0,0.00020383,2]
[322741479,1713233438018,-200.0,0.00020383,2]
[322741480,1713233438027,-5864.66838969,0.00020392,2]
[322741481,1713233438037,-1310.90806688,0.00020392,2]
[322741482,1713233438047,-7500.0,0.000204,2]
[322741483,1713233438056,-5258.91517444,0.000204,2]
[322741485,1713233438065,-165.41006388,0.00020447,2]
[322741487,1713233438075,-9189.03540958,0.00020447,2]
[322741488,1713233438085,-1000.0,0.00020447,2]
[322741489,1713233438094,-1305.6484,0.00020447,2]
[322741490,1713233438103,-5864.66838969,0.00020465,2]
[322741492,1713233438112,-1310.90806688,0.00020465,2]
[322741494,1713233438121,-2428.27211,0.0002047,2]
[322741495,1713233438130,-387.55,0.00020477,2]
[322741497,1713233438139,-1839.26,0.00020477,2]
[322741500,1713233438149,-3808.95190424,0.00020486,2]
[322741502,1713233438158,-217.29508633,0.00020487,2]
[322741504,1713233438167,-9189.03540952,0.00020488,2]
[322741507,1713233438176,-151.43,0.0002049,2]
[322741509,1713233438186,-151.43,0.0002049,2]
[322741511,1713233438196,-151.43,0.0002049,2]
[322741513,1713233438208,-151.43,0.0002049,2]
[322741515,1713233438218,-151.43,0.0002049,2]
[322741518,1713233438228,-151.43,0.0002049,2]
[322741521,1713233438239,-151.43,0.0002049,2]
[322741523,1713233438248,-151.43,0.0002049,2]
[322741525,1713233438257,-190.09125014,0.00020499,2]
[322741527,1713233438266,-3069.0,0.000205,3]
[322741529,1713233438277,-948066.06540336,0.000205,3]
[322741532,1713233438306,-580.4,0.000205,3]
[322741536,1713233438333,-2603.10643675,0.000205,3]
[322741538,1713233438344,-423609.28232633,0.000205,3]
[322741543,1713233438377,-1316.73219491,0.000205,3]
[322741671,1713233439725,-329.10155935,0.000205,3]
[322741734,1713233440355,-3339.87943909,0.000205,3]
[322741852,1713233443028,-976.920342,0.000205,3]
[322741853,1713233443042,-383.48999995,0.000205,3]
[322741854,1713233443053,-863.04239845,0.000205,3]
[322741855,1713233443065,-1487.23232148,0.000205,3]
[322741856,1713233443179,-7190.65130697,0.000205,3]
[322741857,1713233443192,-3199.77813968,0.000205,3]
[322741858,1713233443203,-547.46957672,0.000205,3]
[322741859,1713233443267,-4039.54,0.000205,3]
[322741878,1713233445697,-27951.2523596,0.00020247,2]
[322741879,1713233445752,-1023.38249578,0.00020247,2]
[322741880,1713233445969,-8973.072,0.00020247,2]
[322741881,1713233544205,200.0,0.00020146,30]
[322741882,1713233544266,200.0,0.00020146,30]
[322741883,1713233544315,200.0,0.00020146,30]
[322741884,1713233544420,200.0,0.00020146,30]
[322741885,1713233544479,237.93681556,0.00020146,30]
[322741887,1713233931810,150.74530297,0.00028,30]
[322741888,1713233992194,159.16,0.00017561,2]
[322741889,1713234347015,160.08591209,0.00017561,2]
[322741901,1713234491907,153.74,0.00017135,2]
[322741902,1713234632087,-155.0,0.00018999,2]
[322741903,1713234632097,-1550.0,0.00019,3]
[322741904,1713234632108,-182.46752,0.00019,2]
[322741905,1713234632119,-17.53248,0.00019,2]
[322741906,1713234632129,-150.0,0.00019127,2]
[322741907,1713234632140,-554.49,0.00019128,2]
[322741908,1713234632150,-5591.94535152,0.00019128,2]
[322741909,1713234632163,-734.63521325,0.00019128,2]
[322741910,1713234632198,-840.52331929,0.00019128,2]
[322741911,1713234632210,-816.24453498,0.00019128,2]
[322741960,1713234637992,-10324.17,0.00019,2]
[322741961,1713234638001,-12780.15158096,0.00019128,2]
[322741962,1713234638010,-10000.0,0.00019139,2]
[322741963,1713234638019,-1644.41,0.0001914,2]
[322741964,1713234638028,-250.0,0.00019171,2]
[322741965,1713234638037,-200.0,0.00019171,2]
[322741966,1713234638046,-1802.54,0.00019178,2]
[322741967,1713234638056,-152.12,0.000192,2]
[322741968,1713234638065,-152.12,0.00019312,2]
[322741969,1713234638075,-1852.42,0.00019349,2]
[322741970,1713234638084,-179.2,0.00019349,2]
[322741971,1713234638093,-2751.0,0.00019382,2]
[322741972,1713234638102,-300.7,0.00019415,2]
[322741973,1713234638112,-999.99,0.00019415,2]
[322741974,1713234638122,-499.99,0.00019415,2]
[322741975,1713234638131,-152.12,0.00019423,2]
[322741976,1713234638140,-364.76,0.00019437,2]
[322741977,1713234638151,-179.2,0.00019446,2]
[322741978,1713234638161,-4355.95,0.00019477,2]
[322741979,1713234638171,-848.4,0.00019477,2]
[322741980,1713234638181,-1859.15,0.00019477,2]
[322741981,1713234638190,-152.12,0.00019534,2]
[322741982,1713234638199,-635.24,0.00019599,2]
[322741983,1713234638209,-152.12,0.00019645,2]
[322741984,1713234638217,-152.12,0.00019756,2]
[322741985,1713234638227,-500.0,0.0001978,2]
[322741986,1713234638236,-1000.0,0.0001978,2]
[322741987,1713234638245,-152.12,0.00019867,2]
[322741988,1713234638254,-152.12,0.00019979,2]
[322741989,1713234638263,-1076.0,0.0002,2]
[322741990,1713234638272,-1000.0,0.00020085,2]
[322741991,1713234638281,-500.0,0.00020085,2]
[322741992,1713234638290,-200.0,0.00020085,2]
[322741993,1713234638300,-152.12,0.0002009,2]
[322741994,1713234638309,-12997.33,0.00020145,2]
[322741996,1713234638318,-821.67680826,0.00020176,2]
[322741998,1713234638327,-152.12,0.00020201,2]
[322741999,1713234638336,-821.6768082,0.00020206,2]
[322742000,1713234638345,-821.6768082,0.00020236,2]
[322742001,1713234638355,-91516.8067,0.00020247,2]
[322742002,1713234638365,-821.6768082,0.00020266,2]
[322742004,1713234638375,-1618.84807,0.0002029,2]
[322742006,1713234638385,-821.6768082,0.00020296,2]
[322742008,1713234638394,-1360.0,0.000203,2]
[322742009,1713234638405,-821.6768082,0.00020327,2]
[322742010,1713234638415,-500.0,0.00020328,2]
[322742011,1713234638424,-1000.0,0.00020328,2]
[322742012,1713234638433,-500.0,0.00020345,2]
[322742013,1713234638443,-821.6768082,0.00020357,2]
[322742014,1713234638452,-403.27707693,0.00020376,2]
[322742015,1713234638462,-155.8284217,0.00020378,2]
[322742016,1713234638471,-155.24074687,0.00020379,2]
[322742017,1713234638481,-371.71524565,0.0002038,2]
[322742018,1713234638490,-130868.00174767,0.0002038,2]
[322742019,1713234638508,-10000.0,0.0002038,2]
[322742020,1713234638519,-316.25,0.0002038,2]
[322742021,1713234638538,-1026407.09171837,0.0002038,2]
[322742022,1713234638549,-3229.87777611,0.0002038,2]
[322742023,1713234638600,-2230.65,0.0002038,2]
[322742024,1713234638613,-2208.1150035,0.0002038,2]
[322742025,1713234638624,-2441.0,0.0002038,2]
[322742026,1713234638644,-960420.93992542,0.0002038,2]
[322742030,1713234641934,-388.50512057,0.0002038,2]
[322742031,1713234641950,-1061.41300226,0.0002038,2]
[322742032,1713234642041,-1501.74859112,0.0002038,2]
[322742033,1713234642053,-9004.34196639,0.0002038,2]
[322742045,1713234642995,-14933.0143342,0.0002038,2]
[322742047,1713234643169,-396354.52745685,0.0002038,2]
[322742048,1713234643227,-631.60817011,0.0002038,2]
[322742049,1713234643243,-99413.71940239,0.0002038,2]
[322742050,1713234643395,-382.7350001,0.0002038,2]
[322742051,1713234643407,-1504.49999999,0.0002038,2]
[322742056,1713234646059,-207.0687648,0.00020379,2]
[322742057,1713234646068,-500.0,0.00020379,2]
[322742058,1713234646078,-500.0,0.00020379,2]
[322742059,1713234646087,-500.0,0.00020379,2]
[322742060,1713234646097,-500.0,0.00020379,2]
[322742061,1713234646106,-361.16236425,0.00020379,2]
[322742062,1713234646116,-172339.27291966,0.0002038,2]
[322742063,1713234646172,-2889.6912832,0.0002038,2]
[322742064,1713234692942,1299.61302386,0.00015285,2]
[322742065,1713234704785,151.74751122,0.00019779,120]
[322742066,1713234752824,151.041611,0.00028,30]
[322742067,1713234753961,151.041611,0.00028,30]
[322742068,1713234754762,151.041611,0.00028,30]
[322742069,1713234755496,151.041611,0.00028,30]
[322742070,1713234756322,151.041611,0.00028,30]
[322742071,1713234760558,151.041611,0.00028,30]
[322742072,1713234761391,151.041611,0.00028,30]
[322742073,1713234761900,151.041611,0.00028,30]
[322742074,1713234762636,151.041611,0.00028,30]
[322742075,1713234763375,151.041611,0.00028,30]
[322742076,1713234772852,151.041611,0.00028,30]
[322742077,1713234774587,151.041611,0.00028,30]
[322742078,1713234784592,151.041611,0.00028,30]
[322742079,1713234785473,151.041611,0.00028,30]
[322742080,1713234786385,151.041611,0.00028,30]
[322742081,1713234800535,1000.0,0.00015163,2]
[322742082,1713234803658,247.041611,0.00028,30]
[322742083,1713234806092,200.0,0.00015163,2]
[322742084,1713234810005,507.313172,0.00015162,2]
[322742085,1713234810134,500.0,0.00015163,2]
[322742086,1713234812950,500.0,0.00015163,2]
[322742087,1713235012201,154.15,0.00017082,2]
[322742088,1713235159220,10000.0,0.00028,30]
[322742089,1713235178210,10000.0,0.00028,30]
[322742090,1713235197669,10000.0,0.00028,30]
[322742091,1713235587614,154.15,0.00016814,2]
[322742107,1713235832083,-296.39596885,0.00018729,2]
[322742108,1713235832095,-162.79479096,0.0001873,2]
[322742109,1713235832105,-75.69219316,0.0001873,2]
[322742110,1713235832139,-87.1025978,0.0001873,2]
[322742111,1713235832149,-162.79479096,0.0001873,2]
[322742112,1713235832160,-250.0,0.00018732,2]
[322742113,1713235832170,-209.33,0.00018732,2]
[322742114,1713235832184,-2264.7419,0.00018989,2]
[322742115,1713235832194,-5541.22672996,0.00019089,2]
[322742116,1713235832205,-150.0,0.00019089,2]
[322742117,1713235832215,-6410.58644033,0.00019089,2]
[322742118,1713235832227,-6864.97708171,0.00019089,2]
[322742119,1713235832318,-1329.28402773,0.00019089,2]
[322742120,1713235832330,-1430.67661784,0.00019089,2]
[322742121,1713235832393,-648.56657786,0.00019089,2]
[322742122,1713235832434,-401.29492457,0.00019089,2]
[322742134,1713235838049,-950.0,0.00019089,2]
[322742135,1713235838072,-2985.73368601,0.00019089,2]
[322742136,1713235838083,-1334.57454214,0.00019089,2]
[322742137,1713235838116,-27644.30610181,0.00019089,2]
[322742138,1713235838125,-1397.2,0.0001909,2]
[322742139,1713235838135,-150.0,0.00019178,2]
[322742140,1713235838144,-154.15,0.00019204,2]
[322742141,1713235838153,-152.12,0.00019225,2]
[322742142,1713235838162,-1000.0,0.00019286,2]
[322742143,1713235838171,-167.0,0.00019662,2]
[322742144,1713235838180,-152.12,0.00019726,2]
[322742145,1713235838189,-176.85,0.00019729,2]
[322742146,1713235838198,-500.0,0.0001978,2]
[322742147,1713235838207,-800.0,0.0001978,2]
[322742148,1713235838216,-155.4201839,0.0002,2]
[322742149,1713235838225,-603.2328,0.00020046,2]
[322742150,1713235838234,-562.69075518,0.00020047,2]
[322742151,1713235838243,-5159.64046071,0.00020047,2]
[322742152,1713235838252,-562.6907551,0.00020091,2]
[322742153,1713235838260,-5159.64046068,0.00020091,2]
[322742154,1713235838270,-1000.0,0.000201,2]
[322742155,1713235838279,-562.6907551,0.00020136,2]
[322742156,1713235838288,-5159.64046068,0.00020136,2]
[322742157,1713235838297,-155.69,0.00020136,2]
[322742158,1713235838311,-155.69,0.00020137,2]
[322742159,1713235838320,-5823.9100914,0.00020144,2]
[322742160,1713235838329,-491207.27922943,0.00020146,2]
[322742161,1713235838339,-467.8579,0.00020147,2]
[322742162,1713235838350,-147018.24425759,0.00020147,2]
[322742163,1713235838362,-75680.03684241,0.00020147,2]
[322742164,1713235838371,-16908.3548,0.00020147,2]
[322742165,1713235838381,-150.0,0.00020164,2]
[322742166,1713235838390,-319.39330063,0.00020174,2]
[322742167,1713235838400,-213.0,0.0002018,2]
[322742168,1713235838409,-3000.0,0.0002018,2]
[322742169,1713235838418,-562.6907551,0.0002018,2]
[322742170,1713235838427,-5159.64046068,0.0002018,2]
[322742171,1713235838438,-1000.0,0.000202,2]
[322742173,1713235838447,-150.0,0.00020221,2]
[322742174,1713235838456,-562.6907551,0.00020225,2]
[322742176,1713235838468,-5159.64046068,0.00020225,2]
[322742179,1713235838477,-152.12,0.00020226,2]
[322742180,1713235838488,-562.6907551,0.00020269,2]
[322742183,1713235838498,-5159.64046068,0.00020269,2]
[322742185,1713235838509,-4017.3158,0.00020278,2]
[322742187,1713235838520,-100000.0,0.0002028,2]
[322742188,1713235838530,-1000.0,0.0002028,2]
[322742190,1713235838540,-3505.94344962,0.0002028,2]
[322742192,1713235838551,-179.64300852,0.00020284,2]
[322742194,1713235838561,-8101.91041097,0.00020284,2]
[322742196,1713235838571,-562.6907551,0.00020314,2]
[322742198,1713235838581,-5159.64046068,0.00020314,2]
[322742200,1713235838591,-800.0,0.00020328,2]
[322742203,1713235838602,-8101.91041089,0.0002034,2]
[322742204,1713235838612,-562.6907551,0.00020358,2]
[322742206,1713235838621,-5159.64046068,0.00020358,2]
[322742208,1713235838630,-2220.36372991,0.0002036,2]
[322742210,1713235838640,-3505.94344962,0.00020364,2]
[322742212,1713235838649,-1081.11,0.00020365,2]
[322742214,1713235838658,-1816.96,0.00020365,2]
[322742216,1713235838668,-908.48,0.00020365,2]
[322742218,1713235838677,-155.69,0.0002037,2]
[322742220,1713235838686,-155.69,0.0002037,2]
[322742222,1713235838695,-155.69,0.0002037,2]
[322742224,1713235838704,-706.31,0.00020374,2]
[322742226,1713235838713,-157.16365159,0.00020378,2]
[322742228,1713235838723,-297.49009488,0.00020378,2]
[322742231,1713235838733,-541.86745072,0.00020378,2]
[322742233,1713235838742,-1998.65716659,0.00020378,2]
[322742235,1713235838751,-4989.10649129,0.00020378,2]
[322742236,1713235838760,-347.65032619,0.00020378,2]
[322742238,1713235838770,-178.93003911,0.00020378,2]
[322742240,1713235838779,-156.24630188,0.00020378,2]
[322742243,1713235838788,-156.0786472,0.00020378,2]
[322742245,1713235838798,-159.12763304,0.00020378,2]
[322742246,1713235838807,-795.12710024,0.00020378,2]
[322742249,1713235838817,-558.29078827,0.00020378,2]
[322742251,1713235838827,-986.33606827,0.00020378,2]
[322742253,1713235838836,-1065.00845651,0.00020378,2]
[322742255,1713235838845,-155.44190793,0.00020378,2]
[322742257,1713235838855,-156.61573824,0.00020378,2]
[322742259,1713235838864,-209.12326058,0.00020378,2]
[322742261,1713235838873,-3787.28191786,0.00020378,2]
[322742263,1713235838882,-308.68572321,0.00020378,2]
[322742265,1713235838891,-156.98131803,0.00020378,2]
[322742267,1713235838900,-239.58916597,0.00020378,2]
[322742269,1713235838909,-4823.95307288,0.00020378,2]
[322742270,1713235838918,-200.0,0.00020378,2]
[322742272,1713235838927,-205.60644287,0.00020378,2]
[322742274,1713235838936,-155.92580602,0.00020378,2]
[322742276,1713235838945,-494.04073186,0.00020378,2]
[322742278,1713235838958,-19470.48241811,0.00020378,2]
[322742280,1713235838969,-500.0,0.00020379,2]
[322742282,1713235838978,-507.48445622,0.00020379,2]
[322742284,1713235838988,-1860.90389802,0.00020379,2]
[322742286,1713235838999,-1119.0,0.0002038,2]
[322742288,1713235839010,-9254.28264492,0.0002038,2]
[322742426,1713235840399,-564.33220307,0.0002038,2]
[322742428,1713235840412,-1581.18174546,0.0002038,2]
[322742430,1713235840423,-527.22410352,0.0002038,2]
[322742432,1713235840435,-503.55155047,0.0002038,2]
[322742434,1713235840447,-14253.01605069,0.0002038,2]
[322742441,1713235840496,-3631921.28890004,0.0002038,2]
[322742443,1713235840505,-3311.83915084,0.0002038,2]
[322742445,1713235840514,-300.0,0.00020381,2]
[322742447,1713235840523,-800.0,0.00020384,2]
[322742449,1713235840533,-8101.91041089,0.00020396,2]
[322742451,1713235840542,-924.13,0.000204,2]
[322742453,1713235840551,-160.3685,0.000204,2]
[322742455,1713235840560,-1339.21,0.000204,2]
[322742457,1713235840570,-1000.0,0.000204,2]
[322742459,1713235840580,-562.6907551,0.00020403,2]
[322742461,1713235840589,-5159.64046068,0.00020403,2]
[322742463,1713235840599,-272.5145,0.00020444,2]
[322742465,1713235840610,-562.6907551,0.00020447,2]
[322742467,1713235840618,-5159.64046068,0.00020447,2]
[322742469,1713235840628,-3505.94344962,0.00020447,2]
[322742471,1713235840638,-8101.91041089,0.00020452,2]
[322742473,1713235840647,-38782.78403961,0.0002047,2]
[322742475,1713235840656,-159.06,0.0002049,2]
[322742477,1713235840665,-8825.1915883,0.00020494,2]
[322742479,1713235840674,-442.4711004,0.00020499,2]
[322742481,1713235840683,-368.00971411,0.000205,2]
[322742483,1713235840692,-1281196.00014421,0.000205,3]
[322742485,1713235840703,-490.1733676,0.000205,3]
[322742489,1713235840723,-1022.18724153,0.000205,3]
[322742521,1713235841016,-157.18489306,0.00020278,2]
[322742523,1713235841026,-961.51875694,0.000205,3]
[322742525,1713235841038,-381642.05178551,0.000205,3]
[322742527,1713235841048,-3351.57782813,0.000205,3]
[322742530,1713235841063,-1579.36110569,0.000205,3]
[322742532,1713235841074,-823.46191772,0.000205,3]
[322742781,1713235843456,-228108.16215071,0.000205,3]
[322742784,1713235843467,-31655.17708283,0.000205,3]
[322742787,1713235843486,-431.46423979,0.000205,3]
[322742794,1713235843548,-5027.41901041,0.000205,3]
[322742796,1713235843559,-4214.76681168,0.000205,3]
[322742830,1713235846162,-549.5572481,0.000205,3]
[322742831,1713235846174,-2530.99915328,0.000205,3]
[322742832,1713235846434,-6028.6047016,0.000205,3]
[322742901,1713235954996,200.0,0.00020397,30]
[322742902,1713235955053,200.0,0.00020397,30]
[322742903,1713235955112,200.0,0.00020397,30]
[322742904,1713235955164,200.0,0.00020397,30]
[322742905,1713235955246,200.0,0.00020397,30]
[322742906,1713236056498,154.67,0.00017493,2]
[322742909,1713236553237,154.67,0.00017279,2]
[322742910,1713236565081,10000.0,0.00028,30]
[322742911,1713236650252,3224.0,0.00028,30]
[322742925,1713237032213,-1622.2536372,0.00018995,2]
[322742929,1713237032602,-555.39204531,0.00018995,2]
[322742931,1713237032611,-47.19250241,0.00018996,2]
[322742934,1713237032629,-530.85805162,0.00018996,2]
[322742937,1713237032640,-421.94944597,0.00018996,2]
[322742939,1713237032650,-966.43463374,0.00019,3]
[322742941,1713237032661,-583.56536626,0.00019,3]
[322742943,1713237032670,-500.0,0.00019138,2]
[322742945,1713237032679,-250.0,0.00019144,2]
[322742947,1713237032688,-2040.64,0.00019145,2]
[322742949,1713237032697,-1000.0,0.00019146,2]
[322742951,1713237032706,-1059.21,0.00019178,2]
[322742953,1713237032716,-4018.64647956,0.000192,2]
[322742955,1713237032727,-3554.6006493,0.000192,2]
[322742957,1713237032738,-52.87887246,0.0001921,2]
[322742961,1713237032763,-1007.15591784,0.0001921,2]
[322742964,1713237032775,-268.66486033,0.0001921,2]
[322742968,1713237032809,-591.826501,0.0001921,2]
[322743047,1713237038222,-6358.8525,0.0001921,2]
[322743114,1713237040417,-348.64959659,0.0001921,2]
[322743115,1713237040431,-816.8953572,0.0001921,2]
[322743116,1713237040443,-1039.27305947,0.0001921,2]
[322743117,1713237040484,-3777.06333511,0.0001921,2]
[322743118,1713237040494,-372.72,0.00019244,2]
[322743119,1713237040503,-785.13,0.00019342,2]
[322743120,1713237040512,-3827.81,0.00019342,2]
[322743121,1713237040521,-551.86,0.00019342,2]
[322743122,1713237040530,-1007.15,0.00019395,2]
[322743123,1713237040540,-759.71,0.00019395,2]
[322743124,1713237040549,-7301.05,0.00019395,2]
[322743125,1713237040558,-500.0,0.0001978,2]
[322743126,1713237040567,-700.0,0.0001978,2]
[322743127,1713237040579,-154.67,0.00019809,2]
[322743128,1713237040588,-2998.20256951,0.00019816,2]
[322743129,1713237040597,-499.99,0.00019889,2]
[322743130,1713237040606,-347.34911744,0.0002,2]
[322743131,1713237040615,-150.99,0.00020046,2]
[322743132,1713237040625,-361.3607,0.00020046,2]
[322743133,1713237040634,-151.13,0.00020066,2]
[322743134,1713237040643,-428.12,0.00020066,2]
[322743135,1713237040653,-153.21,0.00020066,2]
[322743136,1713237040662,-151.22,0.00020066,2]
[322743137,1713237040671,-403.9,0.00020066,2]
[322743138,1713237040680,-531.69,0.00020066,2]
[322743139,1713237040690,-254.36,0.00020066,2]
[322743140,1713237040699,-166.28,0.00020066,2]
[322743141,1713237040708,-150.0,0.00020066,2]
[322743142,1713237040717,-418.54,0.00020066,2]
[322743143,1713237040726,-162.52,0.00020066,2]
[322743144,1713237040735,-2998.20256951,0.00020094,2]
[322743145,1713237040745,-500.0,0.00020115,2]
[322743146,1713237040754,-1000.0,0.00020116,2]
[322743147,1713237040764,-200.0,0.00020116,2]
[322743148,1713237040772,-500.0,0.00020116,2]
[322743149,1713237040782,-1426.32683952,0.00020143,2]
[322743150,1713237040791,-500.0,0.000202,2]
[322743151,1713237040801,-591.21575832,0.000203,2]
[322743152,1713237040810,-1000.0,0.000203,2]
[322743153,1713237040820,-700.0,0.00020328,2]
[322743154,1713237040830,-591.21575831,0.00020367,2]
[322743155,1713237040839,-1010.80551143,0.00020379,2]
[322743156,1713237040848,-29390.2622,0.00020399,2]
[322743157,1713237040857,-3338.0,0.000204,3]
[322743158,1713237040866,-946.277,0.000204,2]
[322743159,1713237040875,-5556.02404913,0.000204,2]
[322743160,1713237041139,-500.0,0.000204,2]
[322743161,1713237041149,-591.21575831,0.00020433,2]
[322743162,1713237041158,-5556.02404909,0.00020445,2]
[322743163,1713237041167,-1000.0,0.00020447,2]
[322743164,1713237041177,-45000.0,0.0002047,2]
[322743165,1713237041186,-150.0,0.00020477,2]
[322743166,1713237041195,-377.56386974,0.00020487,2]
[322743167,1713237041204,-5556.02404909,0.00020491,2]
[322743168,1713237041213,-5594.8677713,0.00020492,2]
[322743169,1713237041222,-110859.02097817,0.00020492,2]
[322743170,1713237041445,-908.60045141,0.00019342,2]
[322743181,1713237043498,-1126.43968259,0.00019342,2]
[322743182,1713237043509,-368.855,0.00019342,2]
[322743183,1713237043549,-47596.104866,0.00019342,2]
[322743184,1713237043558,-1606.99457282,0.000195,2]
[322743185,1713237043568,-637.76088073,0.00020492,2]